[Event "FIDE World Cup 2013"]
[Site "TromsÃ¸"]
[Date "2013.08.13"]
[Round "1.8"]
[White "Zvjaginsev, Vadim"]
[Black "Swiercz, Dariusz"]
[Result "0-1"]
[ECO "B22"]
[WhiteElo "2659"]
[BlackElo "2650"]
[PlyCount "90"]
[EventDate "2013.??.??"]
[EventCountry "NOR"]
[TimeControl "300+3"]

1. e4 {[%emt 0:00:00]} c5 {[%emt 0:00:00]} 2. c3 {[%emt 0:00:00]} d5 {[%emt 0:
00:02]} 3. exd5 {[%emt 0:00:00]} Qxd5 {[%emt 0:00:02]} 4. Nf3 {[%emt 0:00:02]}
Nf6 {[%emt 0:00:01]} 5. d4 {[%emt 0:00:01]} e6 {[%emt 0:00:01]} 6. Bb5+ {[%emt
0:00:01]} Bd7 {[%emt 0:00:52]} 7. Be2 {[%emt 0:00:02]} cxd4 {[%emt 0:00:53]} 8.
cxd4 {[%emt 0:00:03]} Bb4+ {[%emt 0:00:01]} 9. Nc3 {[%emt 0:00:12]} O-O {[%emt
0:00:26]} 10. O-O {[%emt 0:00:32]} Bxc3 {[%emt 0:00:01]} 11. bxc3 {[%emt 0:00:
02]} Bb5 {[%emt 0:00:04]} 12. Bxb5 {[%emt 0:00:27]} Qxb5 {[%emt 0:00:01]} 13.
Qb3 {[%emt 0:00:02]} Qa6 {[%emt 0:00:23]} 14. Rb1 {[%emt 0:00:08]} b6 {[%emt 0:
00:09]} 15. Ne5 {[%emt 0:00:17]} Nbd7 {[%emt 0:00:19]} 16. Nc6 {[%emt 0:01:33]}
Rfe8 {[%emt 0:00:01]} 17. Ba3 {[%emt 0:00:18]} Qb7 {[%emt 0:00:34]} 18. Ne7+ {
[%emt 0:00:13]} Kh8 {[%emt 0:00:01]} 19. c4 {[%emt 0:00:01]} Nf8 {[%emt 0:00:
41]} 20. Qf3 {[%emt 0:00:02]} Qxf3 {[%emt 0:00:15]} 21. gxf3 {[%emt 0:00:02]}
Ng6 {[%emt 0:00:04]} 22. Nxg6+ {[%emt 0:00:36]} hxg6 {[%emt 0:00:01]} 23. Bd6 {
[%emt 0:00:21]} Rec8 {[%emt 0:00:23]} 24. c5 {[%emt 0:00:15]} Rc6 {[%emt 0:00:
03]} 25. Rfc1 {[%emt 0:00:14]} Rac8 {[%emt 0:00:05]} 26. a4 {[%emt 0:00:20]}
Nd7 {[%emt 0:00:08]} 27. Kg2 {[%emt 0:00:10]} Kg8 {[%emt 0:00:12]} 28. Bg3 {
[%emt 0:00:12]} Nf6 {[%emt 0:00:26]} 29. Rb5 {[%emt 0:00:08]} Nd5 {[%emt 0:00:
05]} 30. a5 {[%emt 0:00:04]} g5 {[%emt 0:00:07]} 31. axb6 {[%emt 0:00:07]} axb6
{[%emt 0:00:02]} 32. h3 {[%emt 0:00:03]} f6 {[%emt 0:00:03]} 33. Rc2 {[%emt 0:
00:03]} Kf7 {[%emt 0:00:03]} 34. Rc1 {[%emt 0:00:02]} Kg6 {[%emt 0:00:01]} 35.
Rc2 {[%emt 0:00:02]} Kf5 {[%emt 0:00:01]} 36. Rc1 {[%emt 0:00:01]} bxc5 {[%emt
0:00:10]} 37. dxc5 {[%emt 0:00:02]} e5 {[%emt 0:00:01]} 38. Rb7 {[%emt 0:00:08]
} R8c7 {[%emt 0:00:02]} 39. Rxc7 {[%emt 0:00:02]} Nxc7 {[%emt 0:00:01]} 40. h4
{[%emt 0:00:03]} gxh4 {[%emt 0:00:04]} 41. Bxh4 {[%emt 0:00:01]} Ne6 {[%emt 0:
00:01]} 42. Bg3 {[%emt 0:00:05]} Rxc5 {[%emt 0:00:00]} 43. Ra1 {[%emt 0:00:01]}
Rc3 {[%emt 0:00:02]} 44. Ra7 {[%emt 0:00:03]} g5 {[%emt 0:00:02]} 45. Rb7 {
[%emt 0:00:05]} Nd4 {[%emt 0:00:03]} 0-1